Cogmind - Beta 15 @@@ ROGUE MODE // 2025.09.20 @ 16:56:28 Player: Zaros426 Result: Destroyed by as-64181 with Assembled Maul Performance ------------- Evolutions (0) 0 Regions Visited (2) 400 Robots Destroyed (48) 240 Value Destroyed (797) 797 Prototype IDs (0) 0 Alien Tech Used (0) 0 Bonus (0) 0 TOTAL SCORE: 1437 Bonus ------- None Cogmind --------- Core Integrity 0/250 Matter 207/300 Energy 92/100 System Corruption 9% Temperature Cool (0) Movement Rolling (130) Ox2 Location -10/Mines Parts ------- > --- POWER (1) -------- (None) > --- PROPULSION (2) --- Compact Wheel > --- UTILITY (2) ------ High-capacity Storage Unit > --- WEAPON (2) ------- (None) > --- INVENTORY (20) --- Ion Engine Ion Engine Light Treads Light Treads Large Storage Unit Huge Storage Unit Structural Scanner Improved Terrain Scanner Seismic Detector ECM Suite ECM Suite Hacking Suite EM Pulse Gun Light Cannon Slug Cannon Datajack Mining Laser Peak State ------------ > --- POWER ------------ Ion Engine > --- PROPULSION ------- Light Treads Light Treads > --- UTILITY ---------- High-capacity Storage Unit Seismic Detector > --- WEAPON ----------- Light Cannon Slug Cannon > --- INVENTORY -------- Ion Engine Ion Engine Light Treads Compact Wheel Compact Wheel Large Storage Unit Huge Storage Unit Structural Scanner Improved Terrain Scanner Seismic Detector ECM Suite ECM Suite Hacking Suite EM Pulse Gun Light Cannon Grenade Launcher Grenade Launcher Datajack Mining Laser [Rating: 12] Favorites ----------- Power Ion Engine Engine Ion Engine Propulsion Light Treads Treads Light Treads Wheel Compact Wheel Utility Seismic Detector Device Seismic Detector Storage High-capacity Storage Unit Hackware Hacking Suite Weapon Light Cannon Energy Gun Medium Laser Ballistic Gun Light Assault Rifle Ballistic Cannon Light Cannon Launcher Grenade Launcher Special Weapon Mining Laser Build | -11 -10 -10 ------- Run | Yrd Mat Min Slots Evolved . | . . . Power . | . . . Propulsion . | . . . Utility . | . . . Weapon . | . . . Parts Attached 20 | 5 12 3 Power 2 | . 2 . Engine 2 | . 2 . Core . | . . . Reactor . | . . . Propulsion 5 | 2 2 1 Treads 3 | 2 . 1 Leg . | . . . Wheel 2 | . 2 . Hover . | . . . Flight . | . . . Utility 3 | 1 2 . Device 1 | 1 . . Storage 1 | . 1 . Processor . | . . . Hackware 1 | . 1 . Protection . | . . . Artifact . | . . . Weapon 10 | 2 6 2 Energy Gun 2 | 1 1 . Energy Cannon . | . . . Ballistic Gun 1 | 1 . . Ballistic Cannon 3 | . 2 1 Launcher 2 | . 1 1 Special Weapon 2 | . 2 . Impact Weapon . | . . . Slashing Weapon . | . . . Piercing Weapon . | . . . Special Melee Weapon . | . . . Unidentified Prototypes . | . . . Parts Lost 6 | . . 6 Power 1 | . . 1 Propulsion 2 | . . 2 Utility 1 | . . 1 Weapon 2 | . . 2 Highest Loss Streak 5 | . . 5 To Critical Strikes . | . . . Average Backups 12 | 3 11 18 Power 1 | 1 1 2 Propulsion 1 | . 1 2 Utility 3 | . 3 7 Weapon 4 | 1 4 5 Tool/Special . | . . . Unused Backups 15 | 3 1 11 Power 3 | 1 . 2 Propulsion 3 | 2 1 . Utility 8 | . . 8 Weapon . | . . . Tool/Special 1 | . . 1 Average Slot Usage (%) 98 | . 97 99 Engine 13 | . 12 14 Treads 15 | . 17 2 Wheel 12 | . 10 25 Device 14 | . 14 14 Storage 13 | . 13 14 Energy Gun 4 | . 5 . Ballistic Cannon 21 | . 20 21 Launcher 1 | . . 5 Peak Build Rating 12 | 5 9 12 Average Rating 7 | 3 7 9 On Entrance 4 | . 4 9 Naked Turns . | . . . Heaviest Build 56 | 3 52 56 Greatest Support 40 | 20 40 32 Greatest Overweight (x) 3 | . 3 1 Average Overweight (x) 1 | . 1 1 Largest Inventory Capacity 20 | 5 20 20 Average Capacity 18 | 5 19 20 Most Carried 19 | 5 18 19 Average Carried 12 | 3 11 18 Final Capacity 20 | 5 20 20 Final Carried 18 | 5 18 17 Class Distribution -------------------- 100% | Mutant Dominant Class ---------------- Mutant | -10/Materials Mutant | -10/Mines Resources | -11 -10 -10 ----------- Run | Yrd Mat Min Matter Collected 1234 | 275 628 331 Remotely . | . . . Salvage Created 1215 | 175 751 289 Parts 78 | 15 45 18 Haulers Intercepted 2 | . 2 . Recyclers Shooed 2 | . 1 1 Parts Field Recycled . | . . . Retrieved Matter . | . . . Parts Self-Destructed . | . . . Prevented . | . . . Kills | -11 -10 -10 ------- Run | Yrd Mat Min Combat Hostiles Destroyed 30 | . 14 16 Guns 1 | . 1 . Cannons 7 | . 5 2 AOE 22 | . 8 14 Classes Destroyed 10 | 2 7 1 Worker 5 | . 4 1 Builder 2 | . 1 1 Tunneler 5 | 5 . . Hauler 2 | . 2 . Recycler 7 | 1 4 2 Operator 2 | . 2 . Watcher 3 | . 3 . Swarmer 9 | . 3 6 Grunt 13 | . 11 2 Assembled 8 | . . 8 Best Kill Streak 8 | 3 6 8 Combat Bots Only 8 | . 5 8 Max Kills in Single Turn 4 | 1 3 4 Gunslinging . | . . . Exploded 4 | . 2 4 Melee . | . . . Uniques/NPCs Destroyed . | . . . Combat | -11 -10 -10 -------- Run | Yrd Mat Min Hostile Shots Fired 92 | . 47 45 Missed 29 | . 14 15 Hits 63 | . 33 30 Melee 6 | . . 6 Projectile 57 | . 33 24 Critical Strikes 2 | . 1 1 Part Disruptions 1 | . . 1 Damage Taken 940 | . 432 508 Core 268 | . 69 199 Absorbed by Shields . | . . . Core Remaining (%) 100 | 100 . . Volleys Fired 123 | 25 71 27 Largest 2 | 2 2 2 Hottest 100 | 70 100 70 Shots Fired 217 | 50 125 42 Gun 72 | 50 21 1 Cannon 119 | . 89 30 Launcher 21 | . 10 11 Special 5 | . 5 . Kinetic 144 | 25 89 30 Thermal 43 | 25 18 . Explosive 21 | . 10 11 Electromagnetic 9 | . 8 1 Robot Hit Streak 13 | 13 13 5 Robot Miss Streak 3 | 3 3 3 Penetration Max . | . . . Secondary Targets . | . . . Shots Hit Robots 125 | 35 72 18 Core Hits 84 | 11 40 33 Critical Kills . | . . . Critical Parts Destroyed . | . . . Critical Strikes 5 | 1 4 . Burn 3 | 1 2 . Blast 2 | . 2 . Melee Attacks . | . . . Impact . | . . . Slashing . | . . . Piercing . | . . . Sneak Attacks . | . . . Combat Hostiles . | . . . Follow-up Attacks . | . . . Damage Inflicted 3368 | 349 1763 1256 Guns 569 | 349 220 . Cannons 1303 | . 968 335 Explosions 1496 | . 575 921 Melee . | . . . Ramming . | . . . Kinetic 1453 | 150 968 335 Thermal 331 | 199 132 . Explosive 1496 | . 575 921 Electromagnetic 88 | . 88 . Impact . | . . . Slashing . | . . . Piercing . | . . . Highest Corruption 4 | . . 4 Average Corruption 4 | . . 4 Corruption Purged . | . . . Corruption Blocked . | . . . Overload Shots . | . . . Overflow Damage 37 | . 14 23 Projectiles 8 | . 5 3 Explosions 29 | . 9 20 Melee . | . . . Knockbacks 15 | . 8 7 Impact . | . . . Kinetic 14 | . 8 6 Secondary 1 | . . 1 Self-Inflicted Damage 129 | . 67 62 Shots 7 | . 4 3 Rammed . | . . . Targets Rammed . | . . . Kicked . | . . . Crushed . | . . . Highest Temperature 109 | 40 100 109 Average Temperature 31 | 18 30 62 Received Heat Transfer 263 | . 186 77 Siege Activations . | . . . Martial Activations . | . . . Shielding Activations . | . . . Robots Disrupted . | . . . Combat Hostiles . | . . . Robots Corrupted . | . . . Combat Hostiles . | . . . Parts Fried . | . . . Impact Corruptions . | . . . Robots Melted . | . . . Combat Hostiles . | . . . Parts Melted 1 | 1 . . Heat Transferred 1184 | 666 518 . Parts Sabotaged . | . . . Parts Stolen . | . . . Parts Stripped . | . . . Power Chain Reactions 1 | . 1 . Alert | -11 -10 -10 ------- Run | Yrd Mat Min Maximum Alert Level 1 | . 1 1 Low Security (%) 81 | 100 81 73 Level 1 18 | . 18 26 Level 2 . | . . . Level 3 . | . . . Level 4 . | . . . Level 5 . | . . . High Security . | . . . Max Security . | . . . Peak Influence 235 | 5 235 232 Initial 61 | . 3 61 Average 120 | 1 120 185 Influence Increases 945 | 30 616 299 Destroy 0b10 Robot/C 440 | . 280 160 Destroy 0b10 Robot/NC 130 | 30 80 20 Destroy Leader 100 | . 70 30 Successful Hack 21 | . 21 . Select Force Hacks 60 | . 60 . Disable Machine 75 | . 45 30 Destroy Structure 119 | . 60 59 Influence Decreases 805 | 25 463 317 Entered New Map 99 | . 2 97 Time Decay 646 | 25 461 160 Lost Part 60 | . . 60 Squads Dispatched 5 | . 5 . Investigation 3 | . 3 . Extermination . | . . . Reinforcement 2 | . 2 . Assault . | . . . Garrison . | . . . Intercept . | . . . Searches Triggered . | . . . Construction Impeded . | . . . Haulers Reinforced . | . . . Active Scanning Responses . | . . . Cargo Convoy Interrupts . | . . . Stealth | -11 -10 -10 --------- Run | Yrd Mat Min Distress Signals . | . . . Communications Jammed . | . . . Distress Signals . | . . . Times Spotted 48 | . 24 24 Peak Tracking Total 16 | . 4 16 Tactical Retreats . | . . . Traps | -11 -10 -10 ------- Run | Yrd Mat Min Traps Triggered 1 | . 1 . Indirectly . | . . . Trap Hack Attempts . | . . . Triggered . | . . . Disarmed . | . . . Reprogrammed . | . . . Reused . | . . . Traps Extracted . | . . . Installed . | . . . Triggered . | . . . Machines | -11 -10 -10 ---------- Run | Yrd Mat Min Machines Disabled 6 | . 4 2 Max in Single Turn 1 | . 1 1 Machines Repaired . | . . . Machines Dismantled . | . . . Machines Sabotaged . | . . . Overloaded Fab Kills . | . . . Hacking | -11 -10 -10 --------- Run | Yrd Mat Min Machines Accessed 8 | . 8 . Terminals 6 | . 6 . Fabricators . | . . . Repair Stations . | . . . Recycling Units 2 | . 2 . Scanalyzers . | . . . Garrison Access . | . . . Total Hacks 17 | . 17 . Successful 10 | . 10 . Failed 7 | . 7 . Catastrophic . | . . . Database Lockouts . | . . . Manual 18 | . 18 . Terminals 15 | . 15 . Fabricators . | . . . Repair Stations . | . . . Recycling Units 2 | . 2 . Scanalyzers . | . . . Garrison Access . | . . . Terminal Hacks 1 | . 1 . Robot Analysis 1 | . 1 . Fabricator Hacks . | . . . Repair Station Hacks . | . . . Recycling Unit Hacks . | . . . Scanalyzer . | . . . Garrison Access Hacks . | . . . Unauthorized Hacks 8 | . 8 . Terminals 6 | . 6 . Botnet 2 | . 2 . Skim 4 | . 4 . Fabricators . | . . . Repair Stations . | . . . Recycling Units 2 | . 2 . Tunnel 2 | . 2 . Scanalyzers . | . . . Garrison Access . | . . . Data Cores Recovered 1 | . 1 . Used 1 | . 1 . Hacking Detections 6 | . 6 . Full Trace Events . | . . . Feedback Events . | . . . Feedback Blocked . | . . . Robot Schematics Acquired . | . . . Robots Built . | . . . Authchips . | . . . Time . | . . . Total Robot Build Rating . | . . . Part Schematics Acquired . | . . . Parts Built . | . . . Authchips . | . . . Time . | . . . Total Part Build Rating . | . . . Parts Repaired . | . . . Time . | . . . Parts Recycled . | . . . Recycled Matter . | . . . Retrieved Matter . | . . . Retrieved Components . | . . . Parts Scanalyzed . | . . . Part Schematics Acquired . | . . . Parts Damaged . | . . . Bothacking | -11 -10 -10 ------------ Run | Yrd Mat Min Used RIF Installer . | . . . Robots Hacked . | . . . Non-combat . | . . . Combat . | . . . Robot Hacks Applied . | . . . Relay Couplers Released . | . . . Fabnet Peak Effective % . | . . . Robots Rewired . | . . . Allies Hacked . | . . . Hacks Repelled . | . . . Allies | -11 -10 -10 -------- Run | Yrd Mat Min Total Allies . | . . . Largest Group . | . . . Highest-Rated Group . | . . . Highest-Rated Ally . | . . . Total Orders . | . . . Ally Attacks . | . . . Total Damage . | . . . Kills . | . . . Allies Corrupted . | . . . Allies Melted . | . . . Intel | -11 -10 -10 ------- Run | Yrd Mat Min Active Infowar (turns) 2048 | 4 1712 332 Seismic 2048 | 4 1712 332 Robot Analysis Total 1 | . 1 . Derelict Logs Recovered 1 | . . 1 Drone Launches . | . . . Drone Recoveries . | . . . Exploration | -11 -10 -10 ------------- Run | Yrd Mat Min Turns Passed 2217 | 173 1712 332 Spaces Moved 1107 | 110 798 199 Core 153 | 87 66 . Treads 314 | 23 291 . Legs . | . . . Wheels 640 | . 441 199 Hover . | . . . Flight . | . . . Fastest Speed 50 | 50 50 115 Average Speed 142 | 73 158 115 Slowest Speed 240 | 160 240 115 Overloaded Moves . | . . . Propulsion Burnouts . | . . . Robots Hopped . | . . . Potential Cave-ins . | . . . Cave-ins Triggered . | . . . Exploration Rate (%) 53 | 6 98 55 Regions Visited 2 Branch Regions 1 Pre-discovered Areas 2 | . 2 . Known Exits Taken . | . . . Unknown Exits Taken 2 | 1 1 . Scrap Searched . | . . . Spaces Dug 62 | . 27 35 Terrain Destroyed 165 | . 67 98 Melee . | . . . Projectile 9 | . 5 4 AOE 156 | . 62 94 Terrain Rammed . | . . . Walls Destroyed . | . . . Machines Disabled . | . . . Actions | -11 -10 -10 --------- Run | Yrd Mat Min Total 1514 | 157 1102 255 Wait 202 | 5 185 12 Move 1105 | 109 797 199 Hop . | . . . Pick Up 29 | 9 18 2 Fast Attach 5 | 3 2 . Attach 8 | 2 4 2 Detach 3 | 1 2 . Swap 30 | . 18 12 Drop 9 | 3 5 1 Fire 123 | 25 71 27 Melee . | . . . Ram . | . . . Kick . | . . . Crush . | . . . Escape Stasis . | . . . Rewire . | . . . Trap . | . . . Miscellaneous . | . . . Route ------- -11/Scrapyard -10/Materials (discovered 5 exits: [*Mat x3] / [*Min] / [*Sub]) -10/Mines History --------- Turn | Location | Event 7 | -11/Scrapyard | Discovered new exit (range 15) 174 | -11/Scrapyard | Entered Materials 314 | -10/Materials | Build established: Mutant 662 | -10/Materials | Discovered new exit (range 5) 697 | -10/Materials | Discovered new exit (range 12) 1092 | -10/Materials | Discovered new exit (range 7) 1318 | -10/Materials | Discovered new exit (range 3) 1410 | -10/Materials | Discovered new exit (range 9) 1886 | -10/Materials | Entered Mines 1928 | -10/Mines | Learned Materials stockpile data 1971 | -10/Mines | A weapon hastily lodged in a ceiling crevice suddenly fell to the ground 2101 | -10/Mines | Core integrity fell below 50% 2182 | -10/Mines | Assembled infested the area 2187 | -10/Mines | Assisted by a Guerilla fighting off Assembled 2216 | -10/Mines | Core integrity fell below 20% 2218 | -10/Mines | Destroyed by as-64181 with Assembled Maul Last Messages --------------- 02205_ as-54416 destroyed. 02208_ Lgt. Cannon destroyed. 02209_ The unstable cave ceiling collapses. 02212_ as-84026 destroyed. 02212_ as-98057 destroyed. 02212_ Ion Engine destroyed. 02212_ Knocked back. 02215_ Grenade Launcher destroyed. 02215_ Com. Wheel destroyed. 02215_ System corrupted by crushing effect (+4). 02216_ Destroyed Asb. Hover Unit. 02216_ as-96859 destroyed. 02216_ as-33126 destroyed. 02216_ as-86741 destroyed. 02216_ Destroyed Asb. Hover Unit. 02216_ as-08461 destroyed. 02217_ Grenade Launcher severed. 02218_ The unstable cave ceiling collapses. 02218_ Seismic Detector destroyed. 02218_ System corrupted by crushing effect (+5). Map ----- +----------------------------------------------------+ | ?????????????????????????????????????????????????? | | ?????????????????????????????????????????????????? | | ?????????????????????????????????????????????????? | | ?????????????????????????????????????????????????? | | ?????????????????????????????????????????????????? | | ?????????????????????????????????????????????????? | | ?????????????????????????????????????????????????? | | ?????????????????????????????????????????????????? | | ?????????????????????????????????????????????????? | | ?????????????????????????????????????????????????? | | ?????????????????????????????????????????????????? | | ?????????????????????????????????????????????????? | | ?????????????????????????????????????????????????? | | ???????????????????? ????????????????????????????? | | ???? ?????????##?? ????????????????????????????? | | ???? ????????# ##? ????????????????????????????? | | ????? #??????# #? ????????????????????????????? | | ????? #????? #? ?????????????? #????????????? | | ?????? ##??# #?? ??????#####??a##????????????? | | ?????? ### #??? ?????# ## #????????????? | | ??????? #???# #???? #????????????? | | ?????? #????# #?### # ?????????? | | ??????? #????# #?# # #% ????????? | | ???????? ##???# #?# %aa ""?????????? | | ######### #???# #?#a a ""?????????? | | # #???# #?# @ #?????????????? | | # #????# #?## # # #?????????????? | | # ##### ##????# #### #?????####?????????????? | | # #???## #?????# #??????????????????????? | | # #????## ##???## ######??????????????????????? | | # #?????# ##?## ##??????????????????????????? | | # #?????# ### #??????????????????????????? | | # ##????# #??????????????????????????? | | # ##???## ##############??????????????? | | ###??## ## ???????????????? | | # #???########### #??????????????? | | "#?#####????????# """ """ #??????????????? | | ### ##???????# " " " #??????????????? | | #???????# "" ##?????????????? | | #???????# = [ #?????????????? | | # #???????# [%= = #?????????????? | | " !== ##???####### ## = #?????????????? | | =!= [ """ ##### #???# ##?????????????? | | * *= """ #??????##??????????????? | | ## * """ ######??????????????????????? | | ?## #???????????????????????????? | | ??## ## ##???????????????????????????? | | ???# ###### #######????????????????????????????? | | #??# #????## #??????????????????????????????????? | | #### #?????# #?????????????????????????????????? | +----------------------------------------------------+ Best States ------------- Heat Dissipation 25 Energy Generation 10 Energy Capacity 250 Matter Stores 300 Matter Capacity 300 Sight Range 16 Terrain Scan Density 10 Evasion (%) 50 Recoil Reduction 2 Offensive Hacking 10 Item Schematics ----------------- None Robot Schematics ------------------ None Fabricated ------------ Nothing Repaired ---------- Nothing Alien Tech Used ----------------- None Achievements -------------- None Challenges ------------ None Game ------ Seed HardcellRingNanovents Manual? 0 Play Time 00:19:13 Cumulative 321.4 hours Start 2025.09.20 @ 16:06:03 End 2025.09.20 @ 16:56:28 Sessions 1 Manual Loads 0 Difficulty Rogue Special Mode None Game No. 168 Rogue 168 Adventurer 0 Explorer 0 Win Type - Total 1 Types 0/0/0/0/1/0/0/0/0/0 Lore% 80 Gallery% 77 Achievement% 66 Wizard Run 0 Options --------- Layout 0 ASCII 0 Keyboard 0 Movement Mouse Keybinds 0 Fullscreen 1 Font 24/Smallcaps Map View 183x50 Zoom Use 0% Tactical HUD 1 Map Filters NONE Filters NONE Steam 0 RUN: 4bf2f7ad-61f0-43b9-9ea2-587450d96ae9